Cogmind - Beta 16 @@@ ROGUE MODE // 2026.01.01 @ 00:31:49 Player: AngelSpirit Result: Destroyed by Y-54 Guardian with Gatling Laser Performance ------------- Evolutions (0) 0 Regions Visited (3) 600 Robots Destroyed (39) 195 Value Destroyed (901) 901 Prototype IDs (15) 300 Alien Tech Used (0) 0 Bonus (45) 45 TOTAL SCORE: 2041 Bonus ------- Follower Combat Kills 169 Friendly Fire -124 Cogmind --------- Core Integrity 0/250 Matter 234/300 Energy 239/250 System Corruption 0% Temperature Hot (232) Movement Treading (320) Ox2 Location -7/Recycling Parts ------- > --- POWER (1) -------- Ion Engine > --- PROPULSION (2) --- Improved Treads Improved Treads > --- UTILITY (2) ------ Huge Storage Unit Improved Light Armor Plating > --- WEAPON (2) ------- Subdweller Beam Cannon Subdweller Machine Gun > --- INVENTORY (25) --- Subdweller Power Source Improved Treads Subdweller Monowheel Subdweller Monowheel Subdweller Monowheel Medium Storage Unit High-capacity Storage Unit Sensor Array Jamming Amplifier Advanced ECM Suite Light Armor Plating Makeshift Light Armor Plating Layered Light Armor Plating Tower Shield V3-11A's Pendant Riot Gun Riot Gun Subdweller Machine Gun Subdweller Shrapnel Launcher Greatsword Peak State ------------ > --- POWER ------------ Ion Engine > --- PROPULSION ------- Improved Treads Improved Treads > --- UTILITY ---------- Huge Storage Unit Improved Light Armor Plating > --- WEAPON ----------- Subdweller Beam Cannon Subdweller Machine Gun > --- INVENTORY -------- Subdweller Power Source Improved Treads Subdweller Monowheel Subdweller Monowheel Subdweller Monowheel Medium Storage Unit High-capacity Storage Unit Sensor Array Jamming Amplifier Light Armor Plating Light Armor Plating Makeshift Light Armor Plating Tower Shield V3-11A's Pendant Improved EM Shotgun Improved EM Shotgun Riot Gun Riot Gun Particle Cannon Particle Cannon Particle Cannon Subdweller Machine Gun Battle Cannon Subdweller Shrapnel Launcher [Rating: 20] Favorites ----------- Power Subdweller Power Source Engine Subdweller Power Source Propulsion Improved Treads Treads Improved Treads Wheel Wheel Utility Huge Storage Unit Device Sensor Array Storage Huge Storage Unit Protection Backup Plating III Weapon Subdweller Machine Gun Energy Gun Improved EM Shotgun Energy Cannon Subdweller Beam Cannon Ballistic Gun Subdweller Machine Gun Launcher Subdweller Shrapnel Launcher Slashing Weapon Mining Claw Build | -11 -10 -10 -7 ------- Run | Yrd Mat Sub Rec Slots Evolved . | . . . . Power . | . . . . Propulsion . | . . . . Utility . | . . . . Weapon . | . . . . Parts Attached 38 | 6 18 10 4 Power 8 | 1 3 3 1 Engine 8 | 1 3 3 1 Core . | . . . . Reactor . | . . . . Propulsion 8 | 2 5 . 1 Treads 3 | . 2 . 1 Leg . | . . . . Wheel 5 | 2 3 . . Hover . | . . . . Flight . | . . . . Utility 9 | 1 4 3 1 Device 2 | . . 2 . Storage 4 | 1 3 . . Processor . | . . . . Hackware . | . . . . Protection 3 | . 1 1 1 Artifact . | . . . . Weapon 13 | 2 6 4 1 Energy Gun 2 | . 2 . . Energy Cannon 4 | . 2 2 . Ballistic Gun 5 | 2 1 1 1 Ballistic Cannon . | . . . . Launcher 1 | . . 1 . Special Weapon . | . . . . Impact Weapon . | . . . . Slashing Weapon 1 | . 1 . . Piercing Weapon . | . . . . Special Melee Weapon . | . . . . Unidentified Prototypes 2 | . 1 1 . Parts Lost 6 | . 3 3 . Power 2 | . . 2 . Propulsion 2 | . 2 . . Utility 2 | . 1 1 . Weapon . | . . . . Highest Loss Streak 2 | . 1 2 . To Critical Strikes . | . . . . Average Backups 17 | . 9 19 22 Power . | . . 1 1 Propulsion 3 | . 1 4 4 Utility 5 | . 3 5 7 Weapon 7 | . 3 8 9 Tool/Special . | . . . . Unused Backups 20 | . 2 2 16 Power . | . . . . Propulsion 5 | . 1 . 4 Utility 6 | . . . 6 Weapon 9 | . 1 2 6 Tool/Special . | . . . . Average Slot Usage (%) 99 | . 98 99 100 Engine 13 | . 14 13 14 Treads 25 | . 15 28 28 Wheel 2 | . 11 . . Device 8 | . . 11 . Storage 14 | . 14 14 14 Protection 5 | . 13 2 14 Energy Gun 4 | . 14 2 . Energy Cannon 11 | . 6 12 14 Ballistic Gun 11 | . 6 12 14 Peak Build Rating 20 | 6 17 19 20 Average Rating 15 | 4 13 16 18 On Entrance 10 | . 6 15 19 Avg Prop Armor Cover (%) . | . . . . Naked Turns . | . . . . Heaviest Build 104 | 13 92 104 100 Greatest Support 46 | 26 46 46 46 Greatest Overweight (x) 5 | 1 5 2 2 Average Overweight (x) 1 | . . 1 2 Largest Inventory Capacity 25 | 8 25 25 25 Average Capacity 22 | 7 21 22 25 Most Carried 25 | . 16 25 25 Average Carried 17 | . 9 20 23 Final Capacity 25 | 8 25 25 25 Final Carried 25 | . 15 25 22 Class Distribution -------------------- 98% | Mutant Dominant Class ---------------- Mutant | -10/Materials Mutant | -10/Subcaves Mutant | -7/Recycling Resources | -11 -10 -10 -7 ----------- Run | Yrd Mat Sub Rec Matter Collected 906 | 206 413 229 58 Remotely . | . . . . Salvage Created 1497 | . 1111 328 58 Parts 88 | . 62 23 3 Haulers Intercepted 2 | . 2 . . Recyclers Shooed 2 | . 2 . . Parts Field Recycled . | . . . . Retrieved Matter . | . . . . Parts Self-Destructed 14 | . . 14 . Prevented . | . . . . Parts Restored . | . . . . Kills | -11 -10 -10 -7 ------- Run | Yrd Mat Sub Rec Combat Hostiles Destroyed 22 | . 14 7 1 Guns 13 | . 8 5 . Cannons 9 | . 6 2 1 Classes Destroyed 12 | . 9 2 1 Worker 1 | . 1 . . Builder 1 | . 1 . . Hauler 2 | . 2 . . Recycler 4 | . 4 . . Mechanic 1 | . 1 . . Operator 2 | . 2 . . Turret 2 | . . 2 . Watcher 3 | . 3 . . Swarmer 5 | . 3 2 . Grunt 11 | . 11 . . Sentry 1 | . . . 1 Subdweller 6 | . . 6 . Best Kill Streak 7 | . 7 2 1 Combat Bots Only 2 | . 2 2 1 Max Kills in Single Turn 2 | . 2 1 1 Gunslinging . | . . . . Exploded . | . . . . Melee . | . . . . Uniques/NPCs Destroyed . | . . . . Combat | -11 -10 -10 -7 -------- Run | Yrd Mat Sub Rec Hostile Shots Fired 195 | . 65 46 84 Missed 68 | . 16 17 35 Hits 127 | . 49 29 49 Projectile 127 | . 49 29 49 AOE 1 | . . 1 . Critical Strikes 1 | . 1 . . Damage Taken 1530 | . 622 535 373 Core 258 | . 115 85 58 Absorbed by Shields . | . . . . Core Remaining (%) 100 | 100 . . . Volleys Fired 124 | . 70 43 11 Largest 2 | . 2 2 2 Hottest 113 | . 113 110 110 Shots Fired 244 | . 140 83 21 Gun 142 | . 86 46 10 Cannon 99 | . 54 34 11 Launcher 3 | . . 3 . Special . | . . . . Kinetic 122 | . 75 37 10 Thermal 99 | . 54 34 11 Explosive . | . . . . Electromagnetic 23 | . 11 12 . Robot Hit Streak 28 | . 11 28 14 Robot Miss Streak 6 | . 6 2 2 Penetration Max . | . . . . Secondary Targets 2 | . 2 . . Max Gunslinging Chain 1 | . 1 . . Shots Hit Robots 123 | . 77 30 16 Core Hits 62 | . 42 17 3 Critical Kills . | . . . . Critical Parts Destroyed . | . . . . Critical Strikes . | . . . . Melee Attacks 1 | . 1 . . Impact . | . . . . Slashing 1 | . 1 . . Piercing . | . . . . Sneak Attacks . | . . . . Combat Hostiles . | . . . . Follow-up Attacks . | . . . . Damage Inflicted 2327 | . 1218 720 389 Guns 1084 | . 578 336 170 Cannons 999 | . 602 178 219 Explosions 206 | . . 206 . Melee . | . . . . Ramming 38 | . 38 . . Kinetic 977 | . 443 364 170 Thermal 999 | . 602 178 219 Explosive . | . . . . Electromagnetic 313 | . 135 178 . Impact . | . . . . Slashing . | . . . . Piercing . | . . . . Highest Corruption . | . . . . Average Corruption . | . . . . Corruption Purged . | . . . . Corruption Blocked . | . . . . Overload Shots . | . . . . Overflow Damage 1 | . . 1 . Projectiles . | . . . . Explosions 1 | . . 1 . Melee . | . . . . Knockbacks . | . . . . Impact . | . . . . Kinetic . | . . . . Secondary . | . . . . Self-Inflicted Damage . | . . . . Shots . | . . . . Rammed 5 | . 5 . . Targets Rammed 5 | . 5 . . Kicked . | . . . . Crushed . | . . . . Highest Temperature 294 | . 267 9 294 Average Temperature 89 | . 83 5 128 Received Heat Transfer 522 | . 279 129 114 Siege Activations . | . . . . Martial Activations . | . . . . Shielding Activations . | . . . . Robots Disrupted . | . . . . Combat Hostiles . | . . . . Robots Corrupted . | . . . . Combat Hostiles . | . . . . Parts Fried 2 | . . 2 . Impact Corruptions . | . . . . Robots Melted . | . . . . Combat Hostiles . | . . . . Parts Melted . | . . . . Heat Transferred 1850 | . 1258 296 296 Parts Sabotaged . | . . . . Parts Stolen . | . . . . Parts Stripped . | . . . . Power Chain Reactions . | . . . . Alert | -11 -10 -10 -7 ------- Run | Yrd Mat Sub Rec Maximum Alert Level . | . . . . Low Security (%) 100 | 100 100 . 100 Level 1 . | . . . . Level 2 . | . . . . Level 3 . | . . . . Level 4 . | . . . . Level 5 . | . . . . High Security . | . . . . Max Security . | . . . . Peak Influence 157 | . 157 . 117 Initial 117 | . . . 117 Average 62 | . 70 . 40 Influence Increases 998 | . 530 397 71 Destroy 0b10 Robot/C 520 | . 280 220 20 Destroy 0b10 Robot/NC 70 | . 70 . . Destroy Leader 90 | . 70 20 . Allied During Kill 37 | . . 37 . Successful Hack 66 | . 49 . 17 Select Force Hacks 30 | . . . 30 Disable Machine 15 | . 15 . . Destroy Structure 5 | . 1 . 4 Lose Combat Pursuer 165 | . 45 120 . Influence Decreases 993 | . 530 153 310 Entered New Map 127 | . . . 127 Time Decay 708 | . 452 73 183 Lost Part 20 | . 20 . . Lost Ally 80 | . . 80 . Purge Threat 58 | . 58 . . Squads Dispatched 3 | . 3 . . Investigation . | . . . . Extermination . | . . . . Reinforcement 3 | . 3 . . Assault . | . . . . Garrison . | . . . . Intercept . | . . . . Searches Triggered . | . . . . Construction Impeded . | . . . . Haulers Reinforced . | . . . . Active Scanning Responses . | . . . . Cargo Convoy Interrupts . | . . . . Stealth | -11 -10 -10 -7 --------- Run | Yrd Mat Sub Rec Distress Signals 3 | . 3 . . Communications Jammed . | . . . . Distress Signals . | . . . . Times Spotted 47 | . 24 21 2 Peak Tracking Total 6 | . 4 6 1 Tactical Retreats 4 | . 2 2 . Traps | -11 -10 -10 -7 ------- Run | Yrd Mat Sub Rec Traps Triggered 3 | . 3 . . Indirectly . | . . . . Trap Hack Attempts . | . . . . Triggered . | . . . . Disarmed . | . . . . Reprogrammed . | . . . . Reused 1 | . . 1 . Traps Extracted . | . . . . Installed 1 | . . 1 . Triggered . | . . . . Machines | -11 -10 -10 -7 ---------- Run | Yrd Mat Sub Rec Machines Disabled 5 | . 1 4 . Max in Single Turn 3 | . 1 3 . Machines Repaired . | . . . . Machines Dismantled . | . . . . Machines Sabotaged . | . . . . Overloaded Fab Kills . | . . . . Hacking | -11 -10 -10 -7 --------- Run | Yrd Mat Sub Rec Machines Accessed 16 | . 7 2 7 Terminals 9 | . 5 . 4 Fabricators . | . . . . Repair Stations 1 | . 1 . . Recycling Units 4 | . 1 . 3 Scanalyzers . | . . . . Garrison Access . | . . . . Total Hacks 61 | . 32 5 24 Successful 23 | . 12 5 6 Failed 37 | . 19 . 18 Catastrophic 5 | . 1 . 4 Database Lockouts 1 | . 1 . . Manual 31 | . 20 . 11 Terminals 41 | . 28 . 13 Fabricators . | . . . . Repair Stations 2 | . 2 . . Recycling Units 13 | . 2 . 11 Scanalyzers . | . . . . Garrison Access . | . . . . Terminal Hacks 14 | . 9 5 . Record 4 | . . 4 . Robot Analysis 3 | . 3 . . Prototype ID Bank 1 | . 1 . . Terminal Index 1 | . 1 . . Alert Level 1 | . 1 . . Unreport Threat 1 | . 1 . . Locate Traps 1 | . 1 . . Hauler Manifests 1 | . 1 . . Proto ID Catalog 1 | . . 1 . Fabricator Hacks . | . . . . Repair Station Hacks 1 | . 1 . . Refit 1 | . 1 . . Recycling Unit Hacks 3 | . . . 3 Retrieve Components 3 | . . . 3 Scanalyzer . | . . . . Garrison Access Hacks . | . . . . Unauthorized Hacks 5 | . 2 . 3 Terminals 4 | . 2 . 2 Botnet 3 | . 1 . 2 Operators 1 | . 1 . . Fabricators . | . . . . Repair Stations . | . . . . Recycling Units 1 | . . . 1 Tunnel 1 | . . . 1 Scanalyzers . | . . . . Garrison Access . | . . . . Data Cores Recovered . | . . . . Used . | . . . . Hacking Detections 13 | . 6 . 7 Full Trace Events 6 | . 1 . 5 Feedback Events . | . . . . Feedback Blocked . | . . . . Robot Schematics Acquired . | . . . . Robots Built . | . . . . Authchips . | . . . . Time . | . . . . Total Robot Build Rating . | . . . . Part Schematics Acquired . | . . . . Parts Built . | . . . . Authchips . | . . . . Time . | . . . . Total Part Build Rating . | . . . . Part Studies Acquired . | . . . . Parts Repaired . | . . . . Time . | . . . . Parts Recycled . | . . . . Recycled Matter . | . . . . Retrieved Matter . | . . . . Retrieved Components 11 | . . . 11 Parts Scanalyzed . | . . . . Part Schematics Acquired . | . . . . Parts Damaged . | . . . . Bothacking | -11 -10 -10 -7 ------------ Run | Yrd Mat Sub Rec Used RIF Installer . | . . . . Robots Hacked . | . . . . Non-combat . | . . . . Combat . | . . . . Robot Hacks Applied . | . . . . Relay Couplers Released . | . . . . Fabnet Peak Effective % . | . . . . Robots Rewired . | . . . . Allies Hacked . | . . . . Hacks Repelled . | . . . . Allies | -11 -10 -10 -7 -------- Run | Yrd Mat Sub Rec Total Allies 6 | . . 6 . Largest Group 6 | . . 6 . Highest-Rated Group 114 | . . 114 . Highest-Rated Ally 19 | . . 19 . Total Orders . | . . . . Ally Attacks 59 | . . 59 . Total Damage 1457 | . . 1457 . Kills 12 | . . 12 . Allies Corrupted . | . . . . Allies Melted . | . . . . Intel | -11 -10 -10 -7 ------- Run | Yrd Mat Sub Rec Active Infowar (turns) 2288 | . . 2288 . Sensors 2288 | . . 2288 . Robot Analysis Total 3 | . 3 . . Derelict Logs Recovered 2 | . . 2 . Drone Launches . | . . . . Drone Recoveries . | . . . . Exploration | -11 -10 -10 -7 ------------- Run | Yrd Mat Sub Rec Turns Passed 7300 | 37 1515 5326 422 Spaces Moved 2825 | 32 727 1953 113 Core 1 | 1 . . . Treads 2392 | . 326 1953 113 Legs . | . . . . Wheels 432 | 31 401 . . Hover . | . . . . Flight . | . . . . Fastest Speed 50 | 50 90 240 320 Average Speed 238 | 88 165 263 320 Slowest Speed 400 | 95 400 320 320 Overloaded Moves . | . . . . Propulsion Burnouts . | . . . . Robots Hopped . | . . . . Potential Cave-ins . | . . . . Cave-ins Triggered . | . . . . Exploration Rate (%) 54 | 4 99 91 25 Regions Visited 3 Branch Regions 2 Pre-discovered Areas 2 | . . 1 1 Known Exits Taken 1 | . . 1 . Unknown Exits Taken 2 | 1 1 . . Scrap Searched 12 | . . 12 . Spaces Dug . | . . . . Terrain Destroyed 33 | . . 30 3 Melee . | . . . . Projectile 5 | . . 2 3 AOE 28 | . . 28 . Terrain Rammed . | . . . . Walls Destroyed . | . . . . Machines Disabled . | . . . . Actions | -11 -10 -10 -7 --------- Run | Yrd Mat Sub Rec Total 3141 | 37 894 2054 156 Wait 76 | . 38 23 15 Move 2822 | 31 726 1952 113 Hop . | . . . . Pick Up 34 | . 19 11 4 Fast Attach 18 | 6 6 6 . Attach 5 | . 3 2 . Detach 2 | . . 2 . Swap 24 | . 11 9 4 Drop 29 | . 15 5 9 Fire 124 | . 70 43 11 Melee 1 | . 1 . . Ram . | . . . . Kick . | . . . . Crush 5 | . 5 . . Escape Stasis . | . . . . Rewire . | . . . . Trap 1 | . . 1 . Miscellaneous . | . . . . Route ------- -11/Scrapyard -10/Materials (discovered 5 exits: [*Mat x3] / [*Min] / *Sub) -10/Subcaves (discovered 4 exits: [*Mat x2] / *Rec / [*Scr]) -7/Recycling History --------- Turn | Location | Event 17 | -11/Scrapyard | Discovered new exit (range 15) 38 | -11/Scrapyard | Entered Materials 148 | -10/Materials | Discovered new exit (range 16) 245 | -10/Materials | Discovered new exit (range 10) 305 | -10/Materials | Build established: Mutant 419 | -10/Materials | Discovered new exit (range 8) 755 | -10/Materials | Discovered new exit (range 15) 1182 | -10/Materials | Central database locked down 1534 | -10/Materials | Discovered new exit (range 8) 1553 | -10/Materials | Entered Subcaves 1554 | -10/Subcaves | Approached by a straggling Scientist 1592 | -10/Subcaves | Learned location of 1 exit from Materials 1975 | -10/Subcaves | Scientist uncovered a shortcut to Scraptown 2258 | -10/Subcaves | Shifting Twisted Machinery released Battle Cannon 2267 | -10/Subcaves | Discovered new exit (range 8) 2282 | -10/Subcaves | Shifting Twisted Machinery released Mak. Axe 2986 | -10/Subcaves | Learned location of Zion (-6) 2986 | -10/Subcaves | Met a Zionite searching for "candidates" 3287 | -10/Subcaves | Identified exit to Recycling 3290 | -10/Subcaves | Visited triangular shrine 3305 | -10/Subcaves | Found Prototype Device 3305 | -10/Subcaves | Identified V3-11A's Pendant 3310 | -10/Subcaves | Befriended Subdweller 3435 | -10/Subcaves | Befriended Subdweller 3620 | -10/Subcaves | Befriended Subdweller 3641 | -10/Subcaves | Disturbed a concealed Subdweller 3642 | -10/Subcaves | Disturbed a concealed Subdweller 3645 | -10/Subcaves | Befriended Subdweller 3645 | -10/Subcaves | Befriended Subdweller 3645 | -10/Subcaves | Core integrity fell below 50% 3790 | -10/Subcaves | Befriended Subdweller 3862 | -10/Subcaves | Discovered new exit (range 9) 4144 | -10/Subcaves | A swath of the cavern ceiling suddenly collapsed 4507 | -10/Subcaves | A swath of the cavern ceiling suddenly collapsed 5005 | -10/Subcaves | Visited 4L-MR0's lab 5032 | -10/Subcaves | Found Tower Shield 6032 | -10/Subcaves | Visited Clippyterm 6042 | -10/Subcaves | Learned Factory fabricator intel 6788 | -10/Subcaves | Lost 5 allies 6879 | -10/Subcaves | Entered Recycling 7173 | -7/Recycling | Core integrity fell below 20% 7301 | -7/Recycling | Destroyed by Y-54 Guardian with Gatling Laser Last Messages --------------- 07255_ Connecting with Recycling Unit... >>Retrieve(Components) Retrieving 4 components... Greatsword Recalibrator Adv. ECM Suite Corrupted Authchip [R/NC] 07255_ Dropped Imp. EM Shotgun. 07256_ Acquired Greatsword. 07257_ R-06 Scavenger collects Imp. EM Shotgun. 07257_ Dropped Particle Cannon. 07259_ Dropped Battle Cannon. 07259_ R-06 Scavenger collects Particle Cannon. 07261_ R-06 Scavenger collects Imp. EM Shotgun. 07262_ Acquired Adv. ECM Suite. 07262_ R-06 Scavenger collects Battle Cannon. 07272_ Y-54 Guardian springs to life. 07275_ Sub. Machine Gun shoots sparks and powers down. Map ----- +----------------------------------------------------+ | ?????????????????????????????????????????????????? | | ?????????????????????????????????????????????????? | | ?????????????????????????????????????????????????? | | ?????????????????????????????????????????????????? | | ?????????????????????????????????????????????????? | | ?????????????????????????????????????????????????? | | ?????????????????????????????????#############???? | | ?????????????????????????????????#! #???? | | ???????#####?????????????????????# #???? | | ???????#"""#?????????????????????# ! #???? | | ??????##"T"#########??############ #???? | | ????### #??# + = % #???? | | ????#"" " " #??# ########## [ /% #???? | | ????#"" """ """ #### ##???????# ] [ ]!#???? | | ????#"T "" "" # ##############+######???? | | ????#"" """ """ # "" #???? | | ????#"" "" "" + T #???? | | ????### """ """ # #???? | | ??????# """ """ # ### ####"""T"""######???? | | ??????# """ """ #######?# #??#########????????? | | ??????# " " #???????# #????#??????????????? | | ??????# #???????# #### ######?????????? | | ??????# = ######### +?????????? | | ??????##"*"#####+###"""#"""# #???????????? | | ???????#"Y"#???# ###"Y"#"Y"# #???????????? | | ???????#"""#???# ! = @!Y #???????????? | | ???????#####???# = ! #???????????? | | ????############ #???????????? | | ??? r #???????????? | | ??? r #???????????? | | ??? r u r #???????????? | | ????##+########## ############## ;#??????????? | | ????????????????####????????????# ###??????????? | | ????????????????????????????????? #????????????? | | ?????????????????????????????????? #????????????? | | ??????????????????????????????????? !????????????? | | ????????????????????????????????????!!???????????? | | ????????????????????????????????????!????????????? | | ?????????????????????????????????????????????????? | | ?????????????????????????????????????????????????? | | ?????????????????????????????????????????????????? | | ?????????????????????????????????????????????????? | | ?????????????????????????????????????????????????? | | ?????????????????????????????????????????????????? | | ?????????????????????????????????????????????????? | | ?????????????????????????????????????????????????? | | ?????????????????????????????????????????????????? | | ?????????????????????????????????????????????????? | | ?????????????????????????????????????????????????? | | ?????????????????????????????????????????????????? | +----------------------------------------------------+ Best States ------------- Heat Dissipation 25 Energy Generation 15 Energy Capacity 250 Matter Stores 300 Matter Capacity 300 Sight Range 16 Robot Scan Range 14 Terrain Scan Density 10 Armor Coverage 150 Evasion (%) 44 Recoil Reduction 2 Item Schematics ----------------- None Robot Schematics ------------------ None Fabricated ------------ Nothing Repaired ---------- Nothing Studied --------- None Alien Tech Used ----------------- None Achievements -------------- None Challenges ------------ None Game ------ Seed FluxTractorRail Manual? 0 Play Time 00:28:23 Cumulative 358.6 hours Start 2026.01.01 @ 00:06:26 End 2026.01.01 @ 00:31:49 Sessions 1 Manual Loads 0 Difficulty Rogue Special Mode None Game No. 127 Rogue 127 Adventurer 0 Explorer 0 Win Type - Total 7 Types 5/0/0/0/0/0/0/1/0/1 Lore% 79 Gallery% 76 Achievement% 65 Wizard Run 0 Options --------- Layout 1 ASCII 0 Keyboard 0 Movement Mouse Keybinds 0 Fullscreen 2 Font 32/SmallcapsGlow Map View 50x35 Zoom Use 0% Tactical HUD 1 Map Filters NONE Filters NONE Steam 1 RUN: 6d90ef47-abbe-4358-896d-4538b097e6c1